bitfinex-derivatives/quotes_BTCF0:USTF0_20241213
["timestamp","ask_amount","ask_price","bid_price","bid_amount"]
[1734122822922,0.19844089,101850.0,101840.0,0.909884]
[1734122822923,0.04791568,101850.0,101840.0,0.909884]
[1734122823128,0.07871473,101870.0,101860.0,0.049074]
[1734122823423,0.07871473,101870.0,101860.0,1.749074]
[1734122823727,0.07871473,101870.0,101860.0,0.049074]
[1734122823728,0.12778373,101870.0,101860.0,0.049074]
[1734122823927,0.12778373,101870.0,101860.0,0.409874]
[1734122824328,0.12778373,101870.0,101860.0,0.64315292]
[1734122824329,0.25508581,101870.0,101860.0,0.64315292]
[1734122824525,0.25508581,101870.0,101860.0,0.93475157]
[1734122824920,0.25508581,101870.0,101860.0,0.70147265]
[1734122825120,0.34332674,101870.0,101860.0,0.70147265]
[1734122825422,0.34332674,101870.0,101860.0,0.93459804]
[1734122826325,0.22566542,101870.0,101860.0,0.93459804]
[1734122827329,0.22566542,101870.0,101860.0,0.64299939]
[1734122827530,0.22616542,101870.0,101860.0,0.64299939]
[1734122828327,0.22614673,101870.0,101860.0,0.64299939]
[1734122828528,0.22564673,101870.0,101860.0,0.64299939]
[1734122829618,0.22614673,101870.0,101860.0,0.64299939]
[1734122830231,0.1379058,101870.0,101860.0,0.64299939]
[1734122830539,0.1374058,101870.0,101860.0,0.64299939]
[1734122831627,0.1379058,101870.0,101860.0,0.64299939]
[1734122832532,0.1374058,101870.0,101860.0,0.64299939]
[1734122832833,0.1374058,101870.0,101860.0,1.84299939]
[1734122833627,0.1379058,101870.0,101860.0,1.84299939]
[1734122834337,0.13789659,101870.0,101860.0,1.84299939]
[1734122834529,0.13739659,101870.0,101860.0,1.84299939]
[1734122835636,0.13789659,101870.0,101860.0,1.84299939]
[1734122835839,0.13789659,101870.0,101860.0,1.43312539]
[1734122836035,0.13789659,101870.0,101860.0,1.2]
[1734122836338,0.22613752,101870.0,101860.0,1.2]
[1734122836931,0.049074,101860.0,101850.0,1.44421534]
[1734122837129,0.06436083,101860.0,101850.0,0.64300139]
[1734122837435,0.049079,101850.0,101840.0,1.48220539]
[1734122837636,0.12856583,101850.0,101840.0,1.48220539]
[1734122837835,0.12856583,101850.0,101840.0,1.84300539]
[1734122839942,0.113279,101850.0,101840.0,0.93460404]
[1734122840138,0.12856583,101850.0,101840.0,0.93460404]
[1734122840937,0.12857209,101850.0,101840.0,0.93460404]
[1734122841946,0.113279,101850.0,101840.0,0.93460404]
[1734122842142,0.12857209,101850.0,101840.0,0.64300539]
[1734122842334,0.21681302,101850.0,101840.0,0.23312539]
[1734122842539,0.21681589,101850.0,101840.0,0.59392539]
[1734122842735,0.20151993,101850.0,101830.0,2.13658381]
[1734122842935,0.09731926,101840.0,101830.0,0.93658381]
[1734122843136,0.13732493,101840.0,101830.0,0.00197277]
[1734122843332,0.30128283,101840.0,101830.0,0.00197277]
[1734122843541,0.66208283,101840.0,101830.0,0.00147277]
[1734122843844,0.66208283,101840.0,101820.0,0.64266312]
[1734122843845,0.049089,101830.0,101820.0,0.76816571]
[1734122844044,0.114489,101830.0,101820.0,0.53539459]
[1734122844732,0.56339397,101830.0,101820.0,0.17459459]
[1734122844936,0.049093,101820.0,101810.0,0.76816571]
[1734122845141,0.45828409,101820.0,101810.0,0.17459459]
[1734122845341,0.049098,101810.0,101800.0,1.73539459]
[1734122845549,0.20110297,101810.0,101800.0,0.53539459]
[1734122845744,0.20110297,101810.0,101800.0,0.58449759]
[1734122847248,0.112998,101810.0,101800.0,1.08449759]
[1734122848048,0.112998,101810.0,101800.0,0.58449759]
[1734122848245,0.112998,101810.0,101800.0,0.53539459]
[1734122848549,0.049103,101800.0,101790.0,0.36164]
[1734122848739,0.081703,101800.0,101790.0,0.3608]
[1734122854549,0.081703,101800.0,101790.0,0.3613]
[1734122855149,0.09130562,101800.0,101790.0,0.3613]
[1734122856742,0.45210562,101800.0,101790.0,0.0005]
[1734122856943,0.81510562,101800.0,101790.0,0.0005]
[1734122857244,0.049108,101790.0,101780.0,0.3608]
[1734122857450,0.082308,101790.0,101780.0,0.3608]
[1734122857750,0.082308,101790.0,101770.0,0.409917]
[1734122857751,0.049113,101780.0,101770.0,0.409917]
[1734122858855,0.049113,101780.0,101770.0,0.3608]
[1734122859445,0.049118,101770.0,101760.0,1.64252]
[1734122859753,0.082318,101770.0,101760.0,1.5608]
[1734122860155,0.082318,101770.0,101760.0,0.3608]
[1734122860560,0.113018,101770.0,101760.0,0.3608]
[1734122860956,0.113018,101770.0,101760.0,0.3628]
[1734122861453,0.113018,101770.0,101760.0,0.3608]
[1734122861454,0.12821403,101770.0,101760.0,0.3608]
[1734122862159,0.049122,101760.0,101750.0,1.609927]
[1734122863155,0.06431803,101760.0,101750.0,1.609927]
[1734122865865,0.049122,101760.0,101750.0,1.609927]
[1734122866256,0.06431602,101760.0,101750.0,1.609927]
[1734122866562,0.049122,101760.0,101750.0,1.609927]
[1734122867156,0.06431602,101760.0,101750.0,1.609927]
[1734122867356,0.06431602,101760.0,101750.0,1.5608]
[1734122867556,0.43483006,101760.0,101740.0,0.94084971]
[1734122867768,0.09721404,101750.0,101740.0,0.94084971]
[1734122868066,0.06433099,101750.0,101740.0,2.14084971]
[1734122868860,0.049127,101750.0,101740.0,2.14084971]
[1734122869262,0.06433364,101750.0,101740.0,2.14084971]
[1734122869866,0.06433364,101750.0,101740.0,1.64084971]
[1734122870161,0.081527,101750.0,101740.0,1.64084971]
[1734122870965,0.081527,101750.0,101740.0,0.3608]
[1734122871167,0.114727,101750.0,101740.0,0.3608]
[1734122871361,0.114727,101750.0,101740.0,1.5608]
[1734122871669,0.114727,101750.0,101740.0,0.3608]
[1734122871869,0.049132,101740.0,101730.0,0.428135]
[1734122872068,0.049132,101740.0,101730.0,1.609935]
[1734122872465,0.049132,101740.0,101730.0,0.409935]
[1734122873656,0.049132,101740.0,101730.0,0.3608]
[1734122874471,0.049137,101730.0,101720.0,1.5608]
[1734122874765,0.111637,101730.0,101720.0,0.3608]
[1734122875272,0.049142,101720.0,101710.0,1.628146]
[1734122875458,0.049142,101720.0,101710.0,0.428146]
[1734122875765,0.049142,101720.0,101710.0,0.409946]
[1734122876156,0.049142,101720.0,101710.0,0.3608]
[1734122876566,0.049142,101720.0,101710.0,0.409947]
[1734122877977,0.058815,101720.0,101710.0,0.409947]
[1734122879162,0.049142,101720.0,101710.0,0.909947]
[1734122879358,0.049142,101720.0,101710.0,0.928147]
[1734122879557,0.049142,101720.0,101710.0,0.428147]
[1734122879764,0.049142,101720.0,101710.0,0.928147]
[1734122880166,0.111634,101730.0,101720.0,0.049137]
[1734122880367,0.111634,101730.0,101720.0,0.409937]
[1734122880368,0.079734,101730.0,101720.0,0.409937]
[1734122880589,0.049134,101730.0,101720.0,0.941537]
[1734122880873,0.049134,101730.0,101720.0,0.441537]
[1734122881262,0.049134,101730.0,101720.0,0.941537]
[1734122881462,0.049134,101730.0,101720.0,1.641537]
[1734122881667,0.049134,101730.0,101720.0,2.141537]
[1734122881863,0.14684123,101740.0,101730.0,0.049132]
[1734122882063,0.049128,101740.0,101730.0,0.409932]
[1734122882261,0.049128,101740.0,101730.0,0.928132]
[1734122882671,0.049128,101740.0,101730.0,0.428632]
[1734122883066,0.06437945,101740.0,101730.0,0.8613]
[1734122883274,0.06437945,101740.0,101730.0,0.3613]
[1734122883275,0.049127,101740.0,101730.0,0.3613]
[1734122883768,0.52758832,101740.0,101730.0,0.0005]
[1734122883971,0.049137,101720.0,101710.0,0.3608]
[1734122884177,0.049142,101710.0,101700.0,1.709945]
[1734122884376,0.049142,101710.0,101700.0,1.6608]
[1734122884672,0.049142,101710.0,101700.0,0.4608]
[1734122884975,0.080442,101710.0,101700.0,0.4608]
[1734122886273,0.080442,101710.0,101700.0,0.1]
[1734122886575,0.11087611,101710.0,101700.0,0.1]
[1734122886769,0.049151,101690.0,101680.0,0.5]
[1734122886969,0.049156,101690.0,101680.0,0.3608]
[1734122887166,0.113156,101690.0,101680.0,0.3608]
[1734122889270,0.113156,101690.0,101670.0,0.9100344]
[1734122889271,0.049161,101680.0,101670.0,0.9100344]
[1734122889587,0.049161,101680.0,101670.0,0.4100344]
[1734122890275,0.049161,101680.0,101670.0,0.409964]
[1734122890474,0.049166,101670.0,101660.0,0.40997]
[1734122891371,0.75440178,101680.0,101660.0,0.40997]
[1734122891581,0.02592648,101670.0,101660.0,0.90997]
[1734122891770,0.412482,101680.0,101670.0,0.049166]
[1734122892682,0.36332,101680.0,101670.0,0.909966]
[1734122892875,0.473957,101690.0,101680.0,0.049161]
[1734122895180,0.473957,101690.0,101670.0,0.409964]
[1734122895181,0.4248,101690.0,101670.0,0.409964]
[1734122895376,0.07465439,101680.0,101670.0,0.409964]
[1734122895575,0.049161,101680.0,101670.0,0.409964]
[1734122895768,0.049161,101680.0,101670.0,1.609964]
[1734122896168,0.06439532,101680.0,101670.0,1.609964]
[1734122896377,0.01523432,101680.0,101670.0,0.909964]
[1734122896870,0.01523432,101680.0,101670.0,2.128164]
[1734122897075,0.064,101690.0,101680.0,0.049161]
[1734122897277,0.049152,101700.0,101690.0,0.049156]
[1734122897673,0.049152,101700.0,101690.0,1.249156]
[1734122897876,0.88748964,101710.0,101700.0,0.049151]
[1734122898579,0.89743563,101710.0,101700.0,0.049151]
[1734122898887,0.12129499,101710.0,101700.0,0.409951]
[1734122899086,0.111349,101710.0,101700.0,0.409951]
[1734122899385,0.0622,101710.0,101700.0,0.909951]
[1734122899678,0.0622,101710.0,101700.0,0.409951]
[1734122899987,0.0622,101710.0,101700.0,0.909951]
[1734122900173,0.111347,101710.0,101700.0,0.409951]
[1734122900581,0.111347,101710.0,101700.0,0.909951]
[1734122900974,0.111347,101710.0,101700.0,0.409951]
[1734122901176,0.12659783,101710.0,101700.0,0.409951]
[1734122901377,0.12659783,101710.0,101700.0,0.909951]
[1734122901378,0.07745083,101710.0,101700.0,0.909951]
[1734122901570,0.07745083,101710.0,101700.0,0.409951]
[1734122901984,0.07745083,101710.0,101700.0,0.909951]
[1734122902285,0.07745083,101710.0,101700.0,0.409951]
[1734122902486,0.07745083,101710.0,101700.0,0.909951]
[1734122902684,0.07745083,101710.0,101700.0,0.409951]
[1734122902977,0.07745083,101710.0,101700.0,0.909951]
[1734122903172,0.0622,101710.0,101700.0,0.909951]
[1734122903377,0.18306923,101730.0,101720.0,0.049142]
[1734122903681,0.0302,101730.0,101720.0,0.909942]
[1734122903881,0.08350809,101740.0,101730.0,0.049137]
[1734122904076,0.11370809,101740.0,101730.0,0.409937]
[1734122904275,0.47450809,101740.0,101720.0,0.3608]
[1734122904475,0.02551929,101730.0,101720.0,0.3608]
[1734122904684,0.049142,101720.0,101710.0,0.049144]
[1734122904880,0.049147,101710.0,101700.0,0.409951]
[1734122905086,0.12750944,101710.0,101700.0,0.409951]
[1734122905578,0.0783641,101710.0,101700.0,0.909951]
[1734122905974,0.0783641,101710.0,101700.0,0.409951]
[1734122906181,0.1275111,101710.0,101700.0,0.409951]
[1734122906679,0.0783641,101710.0,101700.0,0.409951]
[1734122906876,0.0783641,101710.0,101700.0,0.909951]
[1734122907386,0.0631,101710.0,101700.0,0.409951]
[1734122907574,0.0631,101710.0,101700.0,0.909951]
[1734122907977,0.0631,101710.0,101700.0,0.409951]
[1734122908375,0.0631,101710.0,101700.0,0.909951]
[1734122909282,0.0631,101710.0,101700.0,1.08454559]
[1734122910284,0.0152672,101710.0,101700.0,1.08454559]
[1734122910485,0.0152672,101720.0,101710.0,0.049147]
[1734122910682,0.0152672,101720.0,101710.0,1.609947]
[1734122910882,0.0152672,101720.0,101710.0,2.109947]
[1734122911888,0.112538,101730.0,101720.0,0.049142]
[1734122912093,0.049142,101720.0,101710.0,0.909943]
[1734122912289,0.06441157,101720.0,101710.0,0.409943]
[1734122912784,0.049147,101710.0,101700.0,0.58454559]
[1734122912990,0.12802307,101710.0,101700.0,0.409951]
[1734122913187,0.049151,101700.0,101690.0,1.31732071]
[1734122913482,0.049151,101700.0,101690.0,0.8178751]
[1734122913483,0.06442707,101700.0,101690.0,0.8178751]
[1734122913686,0.06442707,101700.0,101690.0,0.58510398]
[1734122914477,0.049151,101700.0,101690.0,0.53594898]
[1734122914988,0.049151,101700.0,101690.0,0.3608]
[1734122915890,0.049151,101700.0,101690.0,0.53594898]
[1734122916088,0.06443885,101700.0,101690.0,0.53594898]
[1734122918083,0.049151,101700.0,101690.0,1.08510498]
[1734122918295,0.06443968,101700.0,101690.0,1.08510498]
[1734122919286,0.01528868,101700.0,101690.0,1.08510498]
[1734122919482,0.01528868,101700.0,101690.0,1.3178761]
[1734122919694,0.16063568,101710.0,101700.0,0.049151]
[1734122919895,0.16063568,101710.0,101700.0,0.58505965]
[1734122921291,0.16064371,101710.0,101700.0,0.58505965]
[1734122921596,0.16064371,101710.0,101700.0,1.78505965]
[1734122921897,0.16064371,101710.0,101700.0,2.01783077]
[1734122922100,0.07889671,101710.0,101700.0,2.51783077]
[1734122922303,0.07889671,101710.0,101700.0,2.87032819]
[1734122922596,0.07889671,101710.0,101700.0,2.63755707]
[1734122923096,0.0636,101710.0,101700.0,2.63755707]
[1734122923288,0.01529671,101710.0,101700.0,2.63755707]
[1734122923488,0.01529671,101710.0,101700.0,1.43755707]
[1734122923796,0.049147,101710.0,101700.0,1.78747546]
[1734122924091,0.049147,101710.0,101700.0,1.43755707]
[1734122924288,0.049147,101710.0,101700.0,1.43880059]
[1734122924483,0.06444371,101710.0,101700.0,1.43880059]
[1734122925094,0.06444371,101710.0,101700.0,0.93880059]
[1734122925295,0.06444371,101710.0,101700.0,0.88611367]
[1734122925492,0.42525877,101710.0,101700.0,0.23371502]
[1734122925800,0.049151,101700.0,101690.0,0.30927713]
[1734122925996,0.081251,101700.0,101690.0,0.30927713]
[1734122926498,0.16922023,101700.0,101690.0,0.30927713]
[1734122928092,0.18453838,101700.0,101690.0,0.30927713]
[1734122928394,0.16922023,101700.0,101690.0,0.30927713]
[1734122928793,0.20062023,101700.0,101690.0,0.30927713]
[1734122929295,0.20062023,101700.0,101690.0,0.12546211]
[1734122929886,0.112651,101700.0,101690.0,0.48626211]
[1734122930085,0.127965,101700.0,101690.0,0.53541811]
[1734122930694,0.112651,101700.0,101690.0,0.53541811]
[1734122930895,0.09586378,101700.0,101690.0,0.53541811]
[1734122931494,0.09586378,101700.0,101690.0,1.73541811]
[1734122933494,0.09586378,101700.0,101690.0,0.53541811]
[1734122933694,0.09586378,101700.0,101690.0,0.48626211]
[1734122933891,0.080551,101700.0,101690.0,0.48626211]
[1734122934092,0.0958617,101700.0,101690.0,0.48626211]
[1734122934796,0.110551,101700.0,101690.0,0.48626211]
[1734122937297,0.12586679,101700.0,101690.0,0.3608]
[1734122937495,0.110551,101700.0,101690.0,0.3608]
[1734122939300,0.12045788,101700.0,101690.0,0.3608]
[1734122941292,0.20842711,101700.0,101690.0,0.3608]
[1734122942394,0.20842711,101700.0,101690.0,0.88759129]
[1734122942600,0.28567855,101710.0,101700.0,0.049151]
[1734122942788,0.15276396,101710.0,101700.0,0.93571788]
[1734122943099,0.06447409,101710.0,101700.0,1.76868527]
[1734122943289,0.06447409,101710.0,101700.0,1.26868527]
[1734122943490,0.06447409,101710.0,101700.0,1.81783627]
[1734122943695,0.06447409,101710.0,101700.0,1.85063627]
[1734122943896,0.06447409,101710.0,101700.0,1.88343627]
[1734122944800,0.11807707,101720.0,101700.0,1.59183762]
[1734122944801,0.01532609,101720.0,101700.0,1.59183762]
[1734122945005,0.01532609,101720.0,101710.0,0.70240031]
[1734122945305,0.01532609,101720.0,101710.0,1.78648693]
[1734122945500,0.13742724,101730.0,101710.0,1.78648693]
[1734122945701,0.02614074,101720.0,101710.0,1.78648693]
[1734122945897,0.16328766,101730.0,101720.0,0.049142]
[1734122946099,0.16720957,101730.0,101720.0,0.079842]
[1734122946401,0.09423174,101730.0,101720.0,0.079842]
[1734122946800,0.09373174,101730.0,101720.0,0.079842]
[1734122947704,0.09423174,101730.0,101720.0,0.079842]
[1734122948403,0.16720957,101730.0,101720.0,0.079842]
[1734122948700,1.05941092,101740.0,101720.0,0.8915]
[1734122949001,1.05941092,101740.0,101730.0,0.049137]
[1734122949002,1.04409951,101740.0,101730.0,0.049137]
[1734122949393,0.92643819,101740.0,101730.0,0.049137]
[1734122949593,0.94173802,101740.0,101730.0,0.049137]
[1734122950610,0.95143005,101740.0,101730.0,0.049137]
[1734122950794,0.97145846,101740.0,101730.0,0.049137]
[1734122950991,0.95615863,101740.0,101730.0,0.049137]
[1734122952503,0.86786939,101740.0,101730.0,0.049137]
[1734122952904,0.50706939,101740.0,101730.0,0.409937]
[1734122953108,0.52235892,101740.0,101730.0,0.409937]
[1734122953496,0.09561892,101740.0,101730.0,0.409937]
[1734122953700,0.09561892,101740.0,101730.0,0.442037]
[1734122954192,0.02645651,101740.0,101730.0,0.442037]
[1734122954393,0.00969203,101740.0,101730.0,0.942037]
[1734122954597,0.09671753,101750.0,101740.0,0.049132]
[1734122954999,0.09671753,101750.0,101740.0,0.549132]
[1734122955305,0.09671753,101750.0,101730.0,0.3929]
[1734122955306,0.06743544,101750.0,101730.0,2.0929]
[1734122955506,0.05916258,101740.0,101730.0,1.642035]
[1734122955697,0.049632,101740.0,101730.0,2.142035]
[1734122956806,0.049132,101740.0,101730.0,2.142035]
[1734122957795,0.049632,101740.0,101730.0,2.142035]
[1734122958007,0.049632,101740.0,101730.0,0.942035]
[1734122958807,0.049132,101740.0,101730.0,0.942035]
[1734122959807,0.049632,101740.0,101730.0,0.942035]
[1734122962813,0.049132,101740.0,101730.0,0.942035]
[1734122964208,0.049132,101740.0,101730.0,0.909935]
[1734122964415,0.113832,101740.0,101730.0,0.409935]
[1734122965204,0.113832,101740.0,101730.0,0.3608]
[1734122965507,0.049137,101730.0,101720.0,0.40994]
[1734122965703,0.049137,101730.0,101720.0,1.60994]
[1734122965905,0.049137,101730.0,101720.0,0.40994]
[1734122966515,0.049137,101730.0,101720.0,1.60994]
[1734122966810,0.049142,101720.0,101710.0,1.20387176]
[1734122967010,0.049142,101720.0,101710.0,0.41141845]
[1734122967210,0.049142,101720.0,101710.0,1.61141845]
[1734122967517,0.114042,101720.0,101710.0,1.61141845]
[1734122967914,0.114042,101720.0,101710.0,2.11141845]
[1734122969313,0.114042,101720.0,101710.0,2.63523154]
[1734122970312,0.06440921,101730.0,101720.0,0.049142]
[1734122970616,0.114233,101740.0,101730.0,0.049137]
[1734122970813,0.12953033,101740.0,101730.0,0.049137]
[1734122971122,0.12953033,101740.0,101730.0,0.549137]
[1734122971313,0.12953033,101740.0,101730.0,0.049137]
[1734122971708,0.12953033,101740.0,101730.0,0.549137]
[1734122972119,0.12953033,101740.0,101730.0,0.049137]
[1734122972420,0.114233,101740.0,101730.0,0.549137]
[1734122972621,0.20252224,101740.0,101730.0,0.549137]
[1734122972920,0.21783786,101740.0,101730.0,1.249137]
[1734122973114,0.21783786,101740.0,101730.0,1.749137]
[1734122973721,0.21783786,101740.0,101730.0,0.34159031]
[1734122974113,0.21783786,101740.0,101730.0,0.049137]
[1734122974514,0.22760998,101740.0,101730.0,1.07142821]
[1734122974915,0.22760998,101740.0,101730.0,0.57142821]
[1734122975123,0.16250998,101740.0,101730.0,1.07142821]
[1734122977230,0.16252039,101740.0,101730.0,1.07142821]
[1734122977523,0.14719436,101740.0,101730.0,1.07142821]
[1734122979218,0.14719436,101740.0,101730.0,1.20239031]
[1734122979425,0.14719436,101740.0,101730.0,1.43203255]
[1734122982816,0.14719436,101740.0,101730.0,0.93203255]
[1734122983311,0.14719436,101740.0,101730.0,0.88289555]
[1734122983924,0.14719436,101740.0,101730.0,0.93203255]
[1734122987630,0.14719436,101740.0,101730.0,1.43203255]
[1734122988326,0.09806136,101740.0,101730.0,1.43203255]
[1734122988535,0.08828924,101740.0,101730.0,1.81375094]
[1734122988714,0.36958431,101750.0,101740.0,0.049132]
[1734122988919,0.36958431,101750.0,101740.0,0.28313657]
[1734122989122,0.36958431,101750.0,101740.0,0.78313657]
[1734122989433,0.36958431,101750.0,101740.0,1.48313657]
[1734122989930,0.36958431,101750.0,101740.0,0.78313657]
[1734122990140,0.37942983,101750.0,101740.0,0.78313657]
[1734122992332,0.37942983,101750.0,101740.0,0.23400457]
[1734122993120,0.37942983,101750.0,101740.0,0.28313657]
[1734122994233,0.29114059,101750.0,101740.0,0.28313657]
[1734122994533,0.37943872,101750.0,101740.0,0.28313657]
[1734122994928,0.22230684,101750.0,101740.0,0.28313657]
[1734122995134,0.31060444,101750.0,101740.0,1.07558988]
[1734122995333,0.35973144,101750.0,101740.0,0.57558988]
[1734122995738,0.35973144,101750.0,101740.0,1.07558988]
[1734122996432,0.35973144,101750.0,101740.0,0.78313657]
[1734122996634,0.21580444,101750.0,101740.0,1.65996086]
[1734122996830,0.09814312,101750.0,101740.0,1.45755629]
[1734122997937,0.10363064,101750.0,101740.0,1.45755629]
[1734122998136,0.01533304,101750.0,101740.0,1.54552137]
[1734122998638,0.01533304,101750.0,101740.0,2.74552137]
[1734122999325,0.26466265,101760.0,101750.0,0.049127]
[1734122999532,0.26466265,101760.0,101750.0,1.15949916]
[1734122999733,0.26466265,101760.0,101750.0,1.65949916]
[1734123000229,0.26466265,101760.0,101750.0,1.61037216]
[1734123000431,0.26462977,101760.0,101750.0,0.2337783]
[1734123000738,0.32344171,101760.0,101750.0,0.2337783]
[1734123000939,0.33570747,101760.0,101750.0,0.2829053]
[1734123001127,0.17636505,101760.0,101750.0,0.2829053]
[1734123002334,0.17636505,101760.0,101750.0,0.2337783]
[1734123002537,0.32344171,101760.0,101750.0,0.2337783]
[1734123003136,0.17636505,101760.0,101750.0,0.2337783]
[1734123004141,0.26463003,101760.0,101750.0,0.2337783]
[1734123004438,0.17636505,101760.0,101750.0,0.2337783]
[1734123004643,0.26462789,101760.0,101750.0,0.2829053]
[1734123004945,0.17636505,101760.0,101750.0,0.2829053]
[1734123005838,0.2059177,101760.0,101750.0,1.1437053]
[1734123006033,0.2059177,101760.0,101750.0,1.45548862]
[1734123006034,0.08825638,101760.0,101750.0,1.45548862]
[1734123006240,0.01532837,101760.0,101750.0,0.95548862]
[1734123006439,0.08825638,101760.0,101750.0,2.15548862]
[1734123006630,0.08825638,101760.0,101750.0,2.65548862]
[1734123007837,0.08825638,101760.0,101750.0,2.43404988]
[1734123008242,0.13737838,101760.0,101750.0,2.37551235]
[1734123008939,0.13737838,101760.0,101750.0,2.01471235]
[1734123009546,0.13737838,101760.0,101750.0,2.37551235]
[1734123010443,0.13737838,101760.0,101750.0,2.141827]
[1734123010745,0.13737838,101760.0,101750.0,1.45427994]
[1734123010944,0.13737838,101760.0,101750.0,0.28282148]
[1734123011349,0.15270675,101760.0,101750.0,0.28282148]
[1734123011742,0.15270675,101760.0,101750.0,0.23369448]
[1734123012251,0.13737838,101760.0,101750.0,0.23369448]
[1734123012444,0.2550397,101760.0,101750.0,0.23369448]
[1734123012647,0.27035206,101760.0,101750.0,0.23369448]
[1734123013843,0.27035206,101760.0,101750.0,0.28282148]
[1734123014039,0.27035266,101760.0,101750.0,0.28282148]
[1734123015544,0.52758332,101760.0,101750.0,0.049127]
[1734123015940,0.049127,101750.0,101740.0,0.93584736]
[1734123016146,0.21748554,101750.0,101740.0,1.15789765]
[1734123016652,0.24958554,101750.0,101740.0,1.15789765]
[1734123016850,0.61038554,101750.0,101740.0,0.79709765]
[1734123017056,0.72804686,101750.0,101740.0,0.23369448]
[1734123017242,0.72804686,101750.0,101730.0,0.52591736]
[1734123017243,0.62448832,101750.0,101730.0,0.52591736]
[1734123017447,0.09020143,101740.0,101730.0,0.75017933]
[1734123017752,0.15272337,101740.0,101730.0,0.97476952]
[1734123017955,0.15272337,101740.0,101730.0,0.79964455]
[1734123018254,0.15272337,101740.0,101730.0,0.28283148]
[1734123018456,0.15272337,101740.0,101730.0,0.57505436]
[1734123018457,0.13740448,101740.0,101730.0,0.57505436]
[1734123018754,0.1527234,101740.0,101730.0,0.57505436]
[1734123019354,0.13740448,101740.0,101730.0,0.28283148]
[1734123019555,0.63118408,101740.0,101730.0,0.23369448]
[1734123019752,0.6158658,101740.0,101730.0,0.23369448]
[1734123020054,0.049137,101730.0,101720.0,0.93585836]
[1734123020253,0.049137,101730.0,101720.0,0.64363548]
[1734123020254,0.24482077,101730.0,101720.0,0.64363548]
[1734123020447,0.24482077,101730.0,101720.0,0.57505836]
[1734123020644,0.24482077,101730.0,101720.0,0.28283548]
[1734123020854,0.24482077,101730.0,101720.0,0.64413548]
[1734123021151,0.89351239,101730.0,101720.0,0.23419448]
[1734123021354,0.89351239,101730.0,101720.0,0.0005]
[1734123021850,0.049142,101720.0,101710.0,0.23369448]
[1734123022045,0.59098118,101720.0,101710.0,0.23369448]
[1734123022242,0.60629549,101720.0,101700.0,0.28284448]
[1734123022453,0.16779375,101710.0,101700.0,0.64364448]
[1734123022653,0.1527216,101720.0,101710.0,0.049147]
[1734123022960,0.6080556,101730.0,101720.0,0.049142]
[1734123023257,0.5473556,101730.0,101720.0,0.909942]
[1734123023446,0.09826787,101730.0,101720.0,0.909942]
[1734123023653,0.09826787,101730.0,101720.0,0.50271689]
[1734123023654,0.20592561,101730.0,101720.0,0.50271689]
[1734123023852,0.21299885,101740.0,101720.0,0.53381689]
[1734123023853,0.3209838,101740.0,101720.0,0.53381689]
[1734123024156,0.3209838,101740.0,101720.0,1.26734221]
[1734123024157,0.02575985,101730.0,101720.0,1.26734221]
[1734123024454,0.01678919,101740.0,101730.0,0.049137]
[1734123024658,0.01678919,101740.0,101730.0,0.76793721]
[1734123024859,0.00147488,101740.0,101730.0,1.59196009]
[1734123025054,0.00147488,101740.0,101730.0,1.81431442]
[1734123025266,0.00147488,101740.0,101730.0,3.01431442]
[1734123025451,0.06444231,101750.0,101730.0,3.01431442]
[1734123025651,0.01531431,101750.0,101740.0,0.409932]
[1734123025851,0.01531431,101750.0,101740.0,0.50270689]
[1734123026150,0.06444131,101750.0,101740.0,1.14345732]
[1734123026658,0.06444131,101750.0,101740.0,0.909932]
[1734123027259,0.06444131,101750.0,101740.0,1.14345732]
[1734123027452,0.06444131,101750.0,101740.0,0.909932]
[1734123028460,0.06444131,101750.0,101740.0,1.14345732]
[1734123028650,0.1572162,101750.0,101740.0,0.8608]
[1734123028960,0.2540162,101750.0,101740.0,0.3608]
[1734123030057,0.25399874,101750.0,101740.0,0.3608]
[1734123030265,0.25399874,101750.0,101740.0,0.59432532]
[1734123031575,0.25399874,101750.0,101740.0,0.64345732]
[1734123031978,0.06442385,101750.0,101740.0,0.64345732]
[1734123032165,0.06442385,101750.0,101740.0,1.14345732]
[1734123032570,0.52460384,101760.0,101750.0,0.049087]
[1734123032571,0.28004601,101760.0,101750.0,0.049087]
[1734123032774,0.15268514,101760.0,101750.0,0.440187]
[1734123032969,0.06442085,101760.0,101750.0,0.940187]
[1734123033280,0.06442085,101760.0,101750.0,0.440187]
[1734123033463,0.06442085,101760.0,101750.0,0.940187]
[1734123033663,0.13738829,101760.0,101750.0,0.940187]
[1734123034272,0.23016318,101760.0,101750.0,0.940187]
[1734123034572,0.049127,101750.0,101740.0,0.64345532]
[1734123034770,0.20430189,101750.0,101740.0,0.64345532]
[1734123034969,0.21959874,101750.0,101740.0,0.64345532]
[1734123035871,0.21959874,101750.0,101740.0,0.59432532]
[1734123036374,0.25110018,101750.0,101740.0,0.3608]
[1734123037873,0.25110018,101750.0,101730.0,1.0748832]
[1734123038173,0.0747171,101740.0,101730.0,0.79628807]
[1734123038382,0.049132,101740.0,101730.0,1.15708807]
[1734123039469,0.049132,101740.0,101730.0,0.92356275]
[1734123039670,0.049132,101740.0,101730.0,1.15652149]
[1734123040775,0.049132,101740.0,101730.0,1.15653942]
[1734123041178,0.049132,101740.0,101730.0,0.92356275]
[1734123042173,0.049132,101740.0,101730.0,0.70215788]
[1734123042379,0.049132,101740.0,101730.0,0.92374867]
[1734123043978,0.14190689,101740.0,101730.0,0.23304669]
[1734123044179,0.0644346,101740.0,101730.0,0.64298369]
[1734123045478,0.0544346,101740.0,101730.0,0.64298369]
[1734123045687,0.0544346,101740.0,101730.0,0.81779934]
[1734123045873,0.05444049,101740.0,101730.0,0.81779934]
[1734123048184,0.05444049,101740.0,101730.0,0.40786234]
[1734123048782,0.14721538,101740.0,101730.0,0.40786234]
[1734123048979,0.14721675,101740.0,101730.0,0.40786234]
[1734123049981,0.23548104,101740.0,101730.0,0.40786234]
[1734123050788,0.23548104,101740.0,101730.0,0.17481565]
[1734123051183,0.23548104,101740.0,101730.0,0.40786234]
[1734123051585,0.3378325,101740.0,101730.0,0.17481565]
[1734123052992,0.049137,101730.0,101720.0,0.23304669]
[1734123053182,0.049137,101730.0,101720.0,0.4080832]
[1734123053183,0.89459823,101730.0,101720.0,0.4080832]
[1734123053493,0.89459823,101730.0,101710.0,0.88051608]
[1734123053494,1.31666476,101730.0,101710.0,0.4085832]
[1734123053681,0.37355379,101720.0,101710.0,0.4085832]
[1734123053888,0.34787969,101720.0,101710.0,0.17503651]